Cogmind - Beta 12 @@@ ROGUE MODE // 2023.04.09 @ 21:31:50 Player: Mr Goldstein Result: Core destroyed Performance ------------- Evolutions (1) 500 Regions Visited (6) 1200 Robots Destroyed (0) 0 Value Destroyed (0) 0 Prototype IDs (23) 460 Alien Tech Used (0) 0 Bonus (500) 500 TOTAL SCORE: 2660 Bonus ------- Pacifist 200 Aligned with FarCom 300 Cogmind --------- Core Integrity 0/400 Matter 180/300 Energy 100/100 System Corruption 0% Temperature Cool (0) Movement Core (50) Location -8/Mines Parts ------- > --- POWER (1) -------- (None) > --- PROPULSION (2) --- (None) > --- UTILITY (4) ------ (None) > --- WEAPON (2) ------- (None) > --- INVENTORY (5) ---- Signal Interpreter Signal Interpreter PSU Rigger Flail Flail Peak State ------------ > --- POWER ------------ (None) > --- PROPULSION ------- (None) > --- UTILITY ---------- Seismic Detector > --- WEAPON ----------- (None) > --- INVENTORY -------- Signal Interpreter Signal Interpreter PSU Rigger Flail Flail [Rating: 2] Favorites ----------- Power None Propulsion None Utility Seismic Detector Device Seismic Detector Protection Light Armor Plating Weapon None Build | -11 -10 -10 -9 -9 -9 -8 ------- Run | Jun Mat Min Mat Min Exi Min Slots Evolved 2 | . . . 2 . . . Power . | . . . . . . . Propulsion . | . . . . . . . Utility 2 | . . . 2 . . . Weapon . | . . . . . . . Parts Attached 2 | . 1 . . . 1 . Power . | . . . . . . . Engine . | . . . . . . . Core . | . . . . . . . Reactor . | . . . . . . . Propulsion . | . . . . . . . Treads . | . . . . . . . Leg . | . . . . . . . Wheel . | . . . . . . . Hover . | . . . . . . . Flight . | . . . . . . . Utility 2 | . 1 . . . 1 . Device 1 | . . . . . 1 . Storage . | . . . . . . . Processor . | . . . . . . . Hackware . | . . . . . . . Protection 1 | . 1 . . . . . Artifact . | . . . . . . . Weapon . | . . . . . . . Energy Gun . | . . . . . . . Energy Cannon . | . . . . . . . Ballistic Gun . | . . . . . . . Ballistic Cannon . | . . . . . . . Launcher . | . . . . . . . Special Weapon . | . . . . . . . Impact Weapon . | . . . . . . . Slashing Weapon . | . . . . . . . Piercing Weapon . | . . . . . . . Special Melee Weapon . | . . . . . . . Unidentified Prototypes . | . . . . . . . Parts Lost 2 | . 1 . . . . 1 Power . | . . . . . . . Propulsion . | . . . . . . . Utility 2 | . 1 . . . . 1 Weapon . | . . . . . . . Highest Loss Streak 1 | . 1 . . . . 1 To Critical Strikes . | . . . . . . . Average Slot Usage (%) 2 | . 3 . . . 5 2 Device 1 | . . . . . 5 2 Naked Turns 445 | . 69 106 42 71 73 84 Heaviest Build 3 | . 3 . . . 1 1 Greatest Support 3 | 3 3 3 3 3 3 3 Greatest Overweight (x) . | . . . . . . . Average Overweight (x) . | . . . . . . . Largest Inventory Capacity 5 | 5 5 5 5 5 5 5 Average Capacity 5 | 5 5 5 5 5 5 5 Most Carried 5 | . 5 5 5 5 5 5 Average Carried 4 | . 2 5 5 5 4 5 Final Capacity 5 | 5 5 5 5 5 5 5 Final Carried 5 | . 5 5 5 5 5 5 Class Distribution -------------------- 100% | Mutant Dominant Class ---------------- Mutant | -10/Materials Mutant | -10/Mines Mutant | -9/Materials Mutant | -9/Mines Mutant | -9/Exiles Mutant | -8/Mines Resources | -11 -10 -10 -9 -9 -9 -8 ----------- Run | Jun Mat Min Mat Min Exi Min Matter Collected 69 | 53 16 . . . . . Remotely . | . . . . . . . Salvage Created . | . . . . . . . Parts . | . . . . . . . Haulers Intercepted . | . . . . . . . Recyclers Shooed . | . . . . . . . Parts Field Recycled . | . . . . . . . Retrieved Matter . | . . . . . . . Parts Self-Destructed . | . . . . . . . Prevented . | . . . . . . . Kills | -11 -10 -10 -9 -9 -9 -8 ------- Run | Jun Mat Min Mat Min Exi Min Combat Hostiles Destroyed . | . . . . . . . Classes Destroyed . | . . . . . . . Best Kill Streak . | . . . . . . . Combat Bots Only . | . . . . . . . Max Kills in Single Turn . | . . . . . . . Gunslinging . | . . . . . . . Exploded . | . . . . . . . Melee . | . . . . . . . Uniques/NPCs Destroyed . | . . . . . . . Combat | -11 -10 -10 -9 -9 -9 -8 -------- Run | Jun Mat Min Mat Min Exi Min Damage Taken 608 | . 103 89 114 34 . 268 Core 502 | . 13 89 114 34 . 252 Absorbed by Shields . | . . . . . . . Core Remaining (%) 79 | 100 . 59 . . . . Volleys Fired . | . . . . . . . Largest . | . . . . . . . Hottest . | . . . . . . . Shots Fired . | . . . . . . . Gun . | . . . . . . . Cannon . | . . . . . . . Launcher . | . . . . . . . Special . | . . . . . . . Kinetic . | . . . . . . . Thermal . | . . . . . . . Explosive . | . . . . . . . Electromagnetic . | . . . . . . . Robot Hit Streak . | . . . . . . . Robot Miss Streak . | . . . . . . . Penetration Max . | . . . . . . . Secondary Targets . | . . . . . . . Shots Hit Robots . | . . . . . . . Core Hits 1 | . . . . . . 1 Critical Kills . | . . . . . . . Critical Parts Destroyed . | . . . . . . . Critical Strikes . | . . . . . . . Melee Attacks . | . . . . . . . Impact . | . . . . . . . Slashing . | . . . . . . . Piercing . | . . . . . . . Sneak Attacks . | . . . . . . . Combat Hostiles . | . . . . . . . Follow-up Attacks . | . . . . . . . Damage Inflicted 47 | . . . . . . 47 Guns . | . . . . . . . Cannons . | . . . . . . . Explosions . | . . . . . . . Melee . | . . . . . . . Ramming 47 | . . . . . . 47 Kinetic . | . . . . . . . Thermal . | . . . . . . . Explosive . | . . . . . . . Electromagnetic . | . . . . . . . Impact . | . . . . . . . Slashing . | . . . . . . . Piercing . | . . . . . . . Highest Corruption . | . . . . . . . Average Corruption . | . . . . . . . Corruption Purged . | . . . . . . . Corruption Blocked . | . . . . . . . Overload Shots . | . . . . . . . Overflow Damage . | . . . . . . . Projectiles . | . . . . . . . Explosions . | . . . . . . . Melee . | . . . . . . . Knockbacks . | . . . . . . . Impact . | . . . . . . . Kinetic . | . . . . . . . Secondary . | . . . . . . . Self-Inflicted Damage 22 | . . . . . . 22 Shots . | . . . . . . . Rammed 7 | . . . . . . 7 Targets Rammed 7 | . . . . . . 7 Kicked . | . . . . . . . Crushed . | . . . . . . . Highest Temperature . | . . . . . . . Average Temperature . | . . . . . . . Received Heat Transfer 69 | . 60 9 . . . . Siege Activations . | . . . . . . . Robots Corrupted . | . . . . . . . Combat Hostiles . | . . . . . . . Parts Fried . | . . . . . . . Impact Corruptions . | . . . . . . . Robots Melted . | . . . . . . . Combat Hostiles . | . . . . . . . Parts Melted . | . . . . . . . Heat Transferred . | . . . . . . . Parts Sabotaged . | . . . . . . . Parts Stolen . | . . . . . . . Parts Stripped . | . . . . . . . Power Chain Reactions . | . . . . . . . Missiles Intercepted . | . . . . . . . Alert | -11 -10 -10 -9 -9 -9 -8 ------- Run | Jun Mat Min Mat Min Exi Min Peak Influence 110 | . 28 70 35 13 . 110 Initial 27 | . . 10 27 13 . . Average 28 | . 11 26 33 13 . 55 Maximum Alert Level . | . . . . . . . Low Security (%) 100 | 100 100 100 100 100 . 100 Level 1 . | . . . . . . . Level 2 . | . . . . . . . Level 3 . | . . . . . . . Level 4 . | . . . . . . . Level 5 . | . . . . . . . High Security . | . . . . . . . Max Security . | . . . . . . . Squads Dispatched . | . . . . . . . Investigation . | . . . . . . . Extermination . | . . . . . . . Reinforcement . | . . . . . . . Assault . | . . . . . . . Garrison . | . . . . . . . Intercept . | . . . . . . . Searches Triggered . | . . . . . . . Construction Impeded . | . . . . . . . Haulers Reinforced . | . . . . . . . Active Scanning Responses . | . . . . . . . Cargo Convoy Interrupts . | . . . . . . . Stealth | -11 -10 -10 -9 -9 -9 -8 --------- Run | Jun Mat Min Mat Min Exi Min Distress Signals 2 | . 1 . 1 . . . Communications Jammed . | . . . . . . . Distress Signals . | . . . . . . . Times Spotted 34 | . 8 6 6 4 . 10 Peak Tracking Total 8 | . 8 3 6 4 . 4 Tactical Retreats 5 | . . 2 . . . 3 Traps | -11 -10 -10 -9 -9 -9 -8 ------- Run | Jun Mat Min Mat Min Exi Min Traps Triggered . | . . . . . . . Indirectly . | . . . . . . . Trap Hack Attempts . | . . . . . . . Triggered . | . . . . . . . Disarmed . | . . . . . . . Reprogrammed . | . . . . . . . Reused . | . . . . . . . Traps Extracted . | . . . . . . . Installed . | . . . . . . . Triggered . | . . . . . . . Machines | -11 -10 -10 -9 -9 -9 -8 ---------- Run | Jun Mat Min Mat Min Exi Min Machines Disabled . | . . . . . . . Max in Single Turn . | . . . . . . . Machines Repaired . | . . . . . . . Machines Sabotaged . | . . . . . . . Overloaded Fab Kills . | . . . . . . . Hacking | -11 -10 -10 -9 -9 -9 -8 --------- Run | Jun Mat Min Mat Min Exi Min Machines Accessed 4 | . 1 1 1 . 1 . Terminals 3 | . 1 1 1 . . . Fabricators . | . . . . . . . Repair Stations . | . . . . . . . Recycling Units . | . . . . . . . Scanalyzers . | . . . . . . . Garrison Access . | . . . . . . . Total Hacks 6 | . 1 2 2 . 1 . Successful 3 | . 1 . 1 . 1 . Failed 3 | . . 2 1 . . . Catastrophic 2 | . . 1 1 . . . Database Lockouts . | . . . . . . . Manual 6 | . 1 2 2 . 1 . Terminals 5 | . 1 2 2 . . . Fabricators . | . . . . . . . Repair Stations . | . . . . . . . Recycling Units . | . . . . . . . Scanalyzers . | . . . . . . . Garrison Access . | . . . . . . . Terminal Hacks 3 | . 1 . 1 . 1 . Branch Access Points 2 | . 1 . 1 . . . EX-Prototype ID Bank 1 | . . . . . 1 . Fabricator Hacks . | . . . . . . . Repair Station Hacks . | . . . . . . . Recycling Unit Hacks . | . . . . . . . Scanalyzer . | . . . . . . . Garrison Access Hacks . | . . . . . . . Unauthorized Hacks . | . . . . . . . Terminals . | . . . . . . . Fabricators . | . . . . . . . Repair Stations . | . . . . . . . Recycling Units . | . . . . . . . Scanalyzers . | . . . . . . . Garrison Access . | . . . . . . . Data Cores Recovered . | . . . . . . . Used . | . . . . . . . Hacking Detections 2 | . . 1 1 . . . Full Trace Events 2 | . . 1 1 . . . Feedback Events . | . . . . . . . Feedback Blocked . | . . . . . . . Robot Schematics Acquired . | . . . . . . . Robots Built . | . . . . . . . Authchips . | . . . . . . . Time . | . . . . . . . Total Robot Build Rating . | . . . . . . . Part Schematics Acquired . | . . . . . . . Parts Built . | . . . . . . . Authchips . | . . . . . . . Time . | . . . . . . . Total Part Build Rating . | . . . . . . . Parts Repaired . | . . . . . . . Time . | . . . . . . . Parts Recycled . | . . . . . . . Recycled Matter . | . . . . . . . Retrieved Matter . | . . . . . . . Retrieved Components . | . . . . . . . Parts Scanalyzed . | . . . . . . . Part Schematics Acquired . | . . . . . . . Parts Damaged . | . . . . . . . Bothacking | -11 -10 -10 -9 -9 -9 -8 ------------ Run | Jun Mat Min Mat Min Exi Min Used RIF Installer . | . . . . . . . Robots Hacked . | . . . . . . . Non-combat . | . . . . . . . Combat . | . . . . . . . Robot Hacks Applied . | . . . . . . . Relay Couplers Released . | . . . . . . . Fabnet Peak Effective % . | . . . . . . . Robots Rewired . | . . . . . . . Allies Hacked . | . . . . . . . Hacks Repelled . | . . . . . . . Allies | -11 -10 -10 -9 -9 -9 -8 -------- Run | Jun Mat Min Mat Min Exi Min Total Allies . | . . . . . . . Largest Group . | . . . . . . . Highest-Rated Group . | . . . . . . . Highest-Rated Ally . | . . . . . . . Total Orders . | . . . . . . . Ally Attacks . | . . . . . . . Total Damage . | . . . . . . . Kills . | . . . . . . . Allies Corrupted . | . . . . . . . Allies Melted . | . . . . . . . Intel | -11 -10 -10 -9 -9 -9 -8 ------- Run | Jun Mat Min Mat Min Exi Min Robot Analysis Total . | . . . . . . . Derelict Logs Recovered 2 | . . 2 . . . . Drone Launches . | . . . . . . . Drone Recoveries . | . . . . . . . Exploration | -11 -10 -10 -9 -9 -9 -8 ------------- Run | Jun Mat Min Mat Min Exi Min Turns Passed 555 | 12 82 106 42 71 140 102 Spaces Moved 1077 | 25 149 212 84 142 275 190 Core 1077 | 25 149 212 84 142 275 190 Treads . | . . . . . . . Legs . | . . . . . . . Wheels . | . . . . . . . Hover . | . . . . . . . Flight . | . . . . . . . Fastest Speed 50 | 50 50 50 50 50 50 50 Average Speed 50 | 50 50 50 50 50 50 50 Slowest Speed 50 | 50 50 50 50 50 50 50 Overloaded Moves . | . . . . . . . Propulsion Burnouts . | . . . . . . . Robots Hopped . | . . . . . . . Cave-ins Triggered . | . . . . . . . Exploration Rate (%) 41 | 3 48 72 13 31 63 58 Regions Visited 6 Branch Regions 4 Pre-discovered Areas 2 | . . 1 . 1 . . Known Exits Taken 2 | . 1 . 1 . . . Unknown Exits Taken 4 | 1 . 1 . 1 1 . Scrap Searched 1 | . . . . 1 . . Spaces Dug . | . . . . . . . Terrain Destroyed . | . . . . . . . Melee . | . . . . . . . Projectile . | . . . . . . . AOE . | . . . . . . . Terrain Rammed . | . . . . . . . Walls Destroyed . | . . . . . . . Machines Disabled . | . . . . . . . Actions | -11 -10 -10 -9 -9 -9 -8 --------- Run | Jun Mat Min Mat Min Exi Min Total 1086 | 24 155 211 83 141 276 196 Wait . | . . . . . . . Move 1071 | 24 148 211 83 141 274 190 Hop . | . . . . . . . Pick Up 7 | . 6 . . . 1 . Fast Attach . | . . . . . . . Attach 2 | . 1 . . . 1 . Detach . | . . . . . . . Swap . | . . . . . . . Drop . | . . . . . . . Fire . | . . . . . . . Melee . | . . . . . . . Ram 6 | . . . . . . 6 Kick . | . . . . . . . Crush . | . . . . . . . Escape Stasis . | . . . . . . . Rewire . | . . . . . . . Trap . | . . . . . . . Miscellaneous . | . . . . . . . Route ------- -11/Junkyard -10/Materials -10/Mines -9/Materials (discovered 4 exits: *Min x2 / Sto x2) -9/Mines -9/Exiles -8/Mines History --------- Turn | Location | Event 5 | -11/Junkyard | Discovered new exit (range 16) 13 | -11/Junkyard | Entered Materials 26 | -10/Materials | Identified exit to Mines 95 | -10/Materials | Entered Mines 113 | -10/Mines | Met a Derelict bent on vengeance 120 | -10/Mines | Learned Materials terminal intel 121 | -10/Mines | Learned location of Zion (-7) 198 | -10/Mines | Discovered new exit (range 7) 201 | -10/Mines | Entered Materials 201 | -9/Materials | Evolved 2 slots: Utility x2 202 | -9/Materials | Loaded intel: 12 terminal locations 208 | -9/Materials | Identified exit to Mines 208 | -9/Materials | Identified exit to Storage 243 | -9/Materials | Entered Mines 244 | -9/Mines | Learned location of Storage (-9) 312 | -9/Mines | Deemed a non-threat by the Exiles lab entrance 312 | -9/Mines | Discovered new exit (range 5) 314 | -9/Mines | Entered Exiles 316 | -9/Exiles | Build established: Mutant 327 | -9/Exiles | Met 8R-AWN 336 | -9/Exiles | Met EX-HEX 360 | -9/Exiles | Met EX-BIN 367 | -9/Exiles | Aligned with FarCom system 368 | -9/Exiles | Given EX-Vault access code 382 | -9/Exiles | Opened EX-Vault 390 | -9/Exiles | Found PSU Rigger 402 | -9/Exiles | Warned to stay clear of 0b10 Research branches 418 | -9/Exiles | Met EX-DEC 447 | -9/Exiles | Discovered new exit (range 10) 454 | -9/Exiles | Left Exiles lab with PSU Rigger 454 | -9/Exiles | Entered Mines 463 | -8/Mines | Core integrity fell below 50% 511 | -8/Mines | Core integrity fell below 20% 556 | -8/Mines | Core destroyed Last Messages --------------- the FarCom signals could be picked up there, but you're welcome to try if you really want to. And if we have to leave here due to unforeseen circumstances, don't worry the FarCom system will continue to maintain contact via our distributed network. EX-DEC: Ah I see we have a visitor. One wrong move in here and I'll invert your atomic chain! 00420_ EX-DEC: "Oops, I hope HEX didn't hear that..." 00447_ EXIT=FOUND LOCATION=UNKNOWN GOAL=ESCAPE 00454_ Receiving FarCom transmissions... 00455_ T-07 Excavator is excavating. 00465_ S-10 Pest destroyed. 00466_ K-01 Serf collects debris. 00472_ Seismic Detector destroyed. 00472_ K-01 Serf collects debris. 00503_ T-07 Excavator is excavating. 00531_ Slammed into K-01 Serf. 00536_ Slammed into R-06 Scavenger. 00550_ Slammed into K-01 Serf. Map ----- +----------------------------------------------------+ | ?????????????????????????????????????? | | ?????????????????????????????????????? | | ?????????????????????????????????????? | | ?????????????????????????????????????? | | ?????????????????????????????????????? | | ?????????????????????????????????????? | | ?????????????????????????????????????? | | ?????????????????????????????????????? | | ?????????????????????????????????????? | | ?????????????????????????????????????? | | ???????????? ????????????????????????? | | ???????????? ????????????????????????? | | ???????????? ##??????????????????????? | | ????????????r ??????????????????????? | | ???????????? ??????????????????????? | | ???????????? ??????????????????????? | | ???????????? ??????????????????????? | | ???????????? ??????????????????????? | | ????????????# #??????????????????????? | | ????????????#u#??????????????????????? | | ????????????# #??????????????????????? | | ????????????# #??????????????????????? | | ????????????# #??????????????????????? | | ????????????# #??????????????????????? | | ????????????#k#??????????????????????# | | ????????????#@#?????????????????????## | | ???########## #????????????????????## | | ???# ###??????????????????# | | ???# ######## s #??????????????????# | | ???# #??????### ####????????????????# | | ???# #????????# ss #????????????????## | | ???# #????????#### #?????????????????? | | ???# #???????????# #?????????????????? | | ???# #???????????# #?????????????????? | | ???# #???####????# #?????????????????? | | ???# ##### ##??## #?????????????????? | | ??## #### ##????????????????? | | ??# ## ##?????????????### | | ?# ###???????????# | | ?# ##??????????# | | ?## """ ##????###### # | | ??####### """ ##???# # | | ????????## """ ##### ###### | | ?????????## ## #????? | | ??????????####### #????? | | ????????????????### ########????? | | ??????????????????#### ##???????????? | | ?????????????????????####????????????? | | ?????????????????????????????????????? | | | +----------------------------------------------------+ Best States ------------- Heat Dissipation 28 Energy Generation 5 Energy Capacity 100 Matter Stores 173 Matter Capacity 300 Sight Range 16 Terrain Scan Density 10 Armor Coverage 150 Evasion (%) 50 Item Schematics ----------------- None Robot Schematics ------------------ None Fabricated ------------ Nothing Alien Tech Used ----------------- None Achievements -------------- None Challenges ------------ None Game ------ Seed SpectralLightningLaser Manual? 0 Play Time 00:07:04 Cumulative 88.4 hours Start 2023.04.09 @ 21:25:36 End 2023.04.09 @ 21:31:50 Sessions 1 Manual Loads 0 Difficulty Rogue Special Mode None Game No. 120 Rogue 120 Adventurer 0 Explorer 0 Win Type - Total 2 Types 2/0/0/0/0/0/0/0/0 Lore% 53 Gallery% 55 Achievement% 45 Wizard Run 0 Options --------- ASCII 0 Keyboard 0 Movement Arrows Keybinds 0 Fullscreen 1 Font 12/Smallcaps Map View 83x54 Tactical HUD 1 Map Filters NONE Filters NONE Steam 1 RUN: cf6d35dc-8c31-434a-8e8c-42e5258bc83f